Cogmind - Beta 14 @@@ ROGUE MODE // 2024.08.07 @ 17:29:00 Player: gigi283 Result: Destroyed by Autobeam Turret with Autobeam Performance ------------- Evolutions (0) 0 Regions Visited (3) 600 Robots Destroyed (19) 95 Value Destroyed (383) 383 Prototype IDs (0) 0 Alien Tech Used (0) 0 Bonus (0) 0 TOTAL SCORE: 1078 Bonus ------- None Cogmind --------- Core Integrity 0/250 Matter 285/300 Energy 71/100 System Corruption 0% Temperature Cool (13) Movement Walking (190) Ox1 Location -10/Subcaves Parts ------- > --- POWER (1) -------- (None) > --- PROPULSION (2) --- Aluminum Leg > --- UTILITY (2) ------ Medium Storage Unit Sensor Array > --- WEAPON (2) ------- Subdweller Laser Battle Rifle > --- INVENTORY (10) --- Large Storage Unit Terrain Scanner Light Armor Plating Makeshift Light Armor Plating Datajack Datajack Peak State ------------ > --- POWER ------------ Light Ion Engine > --- PROPULSION ------- Aluminum Leg Aluminum Leg > --- UTILITY ---------- Medium Storage Unit Sensor Array > --- WEAPON ----------- Small Laser Light Cannon > --- INVENTORY -------- Large Storage Unit Terrain Scanner Light Armor Plating Datajack Datajack Mining Laser Proton Bomb Trap Proton Bomb Trap Proton Bomb Trap Proton Bomb Trap [Rating: 8] Favorites ----------- Power Light Ion Engine Engine Light Ion Engine Propulsion Aluminum Leg Leg Aluminum Leg Utility Sensor Array Device Sensor Array Storage Medium Storage Unit Weapon Light Cannon Energy Gun Small Laser Ballistic Gun Light Assault Rifle Ballistic Cannon Light Cannon Special Weapon Mining Laser Build | -11 -10 -10 -10 ------- Run | Yrd Mat Min Sub Slots Evolved . | . . . . Power . | . . . . Propulsion . | . . . . Utility . | . . . . Weapon . | . . . . Parts Attached 17 | 6 7 . 4 Power 2 | 1 1 . . Engine 2 | 1 1 . . Core . | . . . . Reactor . | . . . . Propulsion 4 | 2 2 . . Treads . | . . . . Leg 4 | 2 2 . . Wheel . | . . . . Hover . | . . . . Flight . | . . . . Utility 3 | 1 2 . . Device 1 | . 1 . . Storage 2 | 1 1 . . Processor . | . . . . Hackware . | . . . . Protection . | . . . . Artifact . | . . . . Weapon 8 | 2 2 . 4 Energy Gun 4 | 1 1 . 2 Energy Cannon . | . . . . Ballistic Gun 2 | 1 . . 1 Ballistic Cannon 1 | . 1 . . Launcher . | . . . . Special Weapon 1 | . . . 1 Impact Weapon . | . . . . Slashing Weapon . | . . . . Piercing Weapon . | . . . . Special Melee Weapon . | . . . . Unidentified Prototypes . | . . . . Parts Lost 10 | . 5 . 5 Power 2 | . 1 . 1 Propulsion 3 | . 2 . 1 Utility . | . . . . Weapon 5 | . 2 . 3 Highest Loss Streak 3 | . 3 . 2 To Critical Strikes . | . . . . Average Slot Usage (%) 93 | . 94 100 83 Engine 13 | . 13 14 13 Leg 23 | . 24 28 16 Device 13 | . 12 14 14 Storage 14 | . 14 14 14 Energy Gun 13 | . 13 14 12 Ballistic Gun 4 | . 7 . 6 Ballistic Cannon 8 | . 7 14 3 Peak Build Rating 8 | 6 7 8 8 Average Rating 7 | 3 6 7 7 On Entrance 5 | . 6 7 8 Naked Turns . | . . . . Heaviest Build 20 | 11 18 18 20 Greatest Support 20 | 20 20 20 20 Greatest Overweight (x) 1 | 1 1 . 1 Average Overweight (x) . | . . . . Largest Inventory Capacity 10 | 8 10 10 10 Average Capacity 9 | 7 8 10 10 Most Carried 10 | 3 6 10 10 Average Carried 6 | 1 4 9 6 Final Capacity 10 | 8 10 10 10 Final Carried 10 | 2 4 10 6 Class Distribution -------------------- 100% | Mutant Dominant Class ---------------- Mutant | -10/Materials Mutant | -10/Mines Mutant | -10/Subcaves Resources | -11 -10 -10 -10 ----------- Run | Yrd Mat Min Sub Matter Collected 461 | 190 251 . 20 Remotely . | . . . . Salvage Created 419 | . 364 . 55 Parts 26 | . 18 . 8 Haulers Intercepted . | . . . . Recyclers Shooed . | . . . . Parts Field Recycled . | . . . . Retrieved Matter . | . . . . Parts Self-Destructed 9 | . . . 9 Prevented 1 | . . . 1 Kills | -11 -10 -10 -10 ------- Run | Yrd Mat Min Sub Combat Hostiles Destroyed 16 | . 12 . 4 Guns 12 | . 8 . 4 Cannons 4 | . 4 . . Classes Destroyed 4 | . 4 . . Worker 1 | . 1 . . Watcher 2 | . 2 . . Swarmer 10 | . 6 . 4 Grunt 6 | . 6 . . Best Kill Streak 7 | . 7 . 4 Combat Bots Only 5 | . 5 . 4 Max Kills in Single Turn 2 | . 1 . 2 Gunslinging 1 | . . . 1 Exploded . | . . . . Melee . | . . . . Uniques/NPCs Destroyed . | . . . . Combat | -11 -10 -10 -10 -------- Run | Yrd Mat Min Sub Hostile Shots Fired 152 | . 97 . 55 Missed 31 | . 13 . 18 Damage Taken 1145 | . 828 . 317 Core 256 | . 186 . 70 Absorbed by Shields . | . . . . Core Remaining (%) 100 | 100 . . . Volleys Fired 80 | . 59 . 21 Largest 2 | . 2 . 2 Hottest 100 | . 75 . 100 Shots Fired 141 | . 114 . 27 Gun 108 | . 91 . 17 Cannon 23 | . 23 . . Launcher . | . . . . Special 10 | . . . 10 Kinetic 70 | . 65 . 5 Thermal 71 | . 49 . 22 Explosive . | . . . . Electromagnetic . | . . . . Robot Hit Streak 11 | . 11 . 3 Robot Miss Streak 5 | . 5 . 3 Penetration Max . | . . . . Secondary Targets 4 | . 3 . 1 Max Gunslinging Chain 1 | . 1 . 1 Shots Hit Robots 66 | . 61 . 5 Core Hits 30 | . 26 . 4 Critical Kills . | . . . . Critical Parts Destroyed . | . . . . Critical Strikes 2 | . 2 . . Burn 1 | . 1 . . Blast 1 | . 1 . . Melee Attacks . | . . . . Impact . | . . . . Slashing . | . . . . Piercing . | . . . . Sneak Attacks . | . . . . Combat Hostiles . | . . . . Follow-up Attacks . | . . . . Damage Inflicted 850 | . 762 . 88 Guns 571 | . 483 . 88 Cannons 279 | . 279 . . Explosions . | . . . . Melee . | . . . . Ramming . | . . . . Kinetic 510 | . 461 . 49 Thermal 340 | . 301 . 39 Explosive . | . . . . Electromagnetic . | . . . . Impact . | . . . . Slashing . | . . . . Piercing . | . . . . Highest Corruption . | . . . . Average Corruption . | . . . . Corruption Purged . | . . . . Corruption Blocked . | . . . . Overload Shots . | . . . . Overflow Damage . | . . . . Projectiles . | . . . . Explosions . | . . . . Melee . | . . . . Knockbacks 2 | . 2 . . Impact . | . . . . Kinetic 2 | . 2 . . Secondary . | . . . . Self-Inflicted Damage . | . . . . Shots . | . . . . Rammed . | . . . . Targets Rammed 1 | . . 1 . Kicked 1 | . . 1 . Crushed . | . . . . Highest Temperature 222 | . 222 . 2 Average Temperature 73 | . 73 . 2 Received Heat Transfer 393 | . 282 . 111 Siege Activations . | . . . . Robots Corrupted . | . . . . Combat Hostiles . | . . . . Parts Fried . | . . . . Impact Corruptions . | . . . . Robots Melted . | . . . . Combat Hostiles . | . . . . Parts Melted 2 | . 2 . . Heat Transferred 953 | . 903 . 50 Parts Sabotaged . | . . . . Parts Stolen . | . . . . Parts Stripped . | . . . . Power Chain Reactions . | . . . . Alert | -11 -10 -10 -10 ------- Run | Yrd Mat Min Sub Peak Influence 277 | . 277 70 . Initial 70 | . . 70 . Average 69 | . 135 29 . Maximum Alert Level 1 | . 1 . . Low Security (%) 86 | 100 65 100 . Level 1 13 | . 34 . . Level 2 . | . . . . Level 3 . | . . . . Level 4 . | . . . . Level 5 . | . . . . High Security . | . . . . Max Security . | . . . . Squads Dispatched 1 | . 1 . . Investigation . | . . . . Extermination . | . . . . Reinforcement 1 | . 1 . . Assault . | . . . . Garrison . | . . . . Intercept . | . . . . Searches Triggered . | . . . . Construction Impeded . | . . . . Haulers Reinforced . | . . . . Active Scanning Responses . | . . . . Cargo Convoy Interrupts . | . . . . Stealth | -11 -10 -10 -10 --------- Run | Yrd Mat Min Sub Distress Signals 3 | . 3 . . Communications Jammed . | . . . . Distress Signals . | . . . . Times Spotted 33 | . 25 . 8 Peak Tracking Total 7 | . 7 . 4 Tactical Retreats 5 | . 1 . 4 Traps | -11 -10 -10 -10 ------- Run | Yrd Mat Min Sub Traps Triggered . | . . . . Indirectly . | . . . . Trap Hack Attempts . | . . . . Triggered . | . . . . Disarmed . | . . . . Reprogrammed . | . . . . Reused 4 | . . . 4 Traps Extracted . | . . . . Installed 4 | . . . 4 Triggered 4 | . . . 4 Most Traps Carried 4 | . . 4 4 Machines | -11 -10 -10 -10 ---------- Run | Yrd Mat Min Sub Machines Disabled 2 | . 2 . . Max in Single Turn 1 | . 1 . . Machines Repaired . | . . . . Machines Dismantled . | . . . . Machines Sabotaged . | . . . . Overloaded Fab Kills . | . . . . Hacking | -11 -10 -10 -10 --------- Run | Yrd Mat Min Sub Machines Accessed 1 | . 1 . . Terminals 1 | . 1 . . Fabricators . | . . . . Repair Stations . | . . . . Recycling Units . | . . . . Scanalyzers . | . . . . Garrison Access . | . . . . Total Hacks 1 | . 1 . . Successful . | . . . . Failed 1 | . 1 . . Catastrophic . | . . . . Database Lockouts . | . . . . Manual . | . . . . Terminals 1 | . 1 . . Fabricators . | . . . . Repair Stations . | . . . . Recycling Units . | . . . . Scanalyzers . | . . . . Garrison Access . | . . . . Terminal Hacks . | . . . . Fabricator Hacks . | . . . . Repair Station Hacks . | . . . . Recycling Unit Hacks . | . . . . Scanalyzer . | . . . . Garrison Access Hacks . | . . . . Unauthorized Hacks . | . . . . Terminals . | . . . . Fabricators . | . . . . Repair Stations . | . . . . Recycling Units . | . . . . Scanalyzers . | . . . . Garrison Access . | . . . . Data Cores Recovered . | . . . . Used . | . . . . Hacking Detections 1 | . 1 . . Full Trace Events . | . . . . Feedback Events . | . . . . Feedback Blocked . | . . . . Robot Schematics Acquired . | . . . . Robots Built . | . . . . Authchips . | . . . . Time . | . . . . Total Robot Build Rating . | . . . . Part Schematics Acquired . | . . . . Parts Built . | . . . . Authchips . | . . . . Time . | . . . . Total Part Build Rating . | . . . . Parts Repaired . | . . . . Time . | . . . . Parts Recycled . | . . . . Recycled Matter . | . . . . Retrieved Matter . | . . . . Retrieved Components . | . . . . Parts Scanalyzed . | . . . . Part Schematics Acquired . | . . . . Parts Damaged . | . . . . Bothacking | -11 -10 -10 -10 ------------ Run | Yrd Mat Min Sub Used RIF Installer . | . . . . Robots Hacked . | . . . . Non-combat . | . . . . Combat . | . . . . Robot Hacks Applied . | . . . . Relay Couplers Released . | . . . . Fabnet Peak Effective % . | . . . . Robots Rewired . | . . . . Allies Hacked . | . . . . Hacks Repelled . | . . . . Allies | -11 -10 -10 -10 -------- Run | Yrd Mat Min Sub Total Allies . | . . . . Largest Group . | . . . . Highest-Rated Group . | . . . . Highest-Rated Ally . | . . . . Total Orders . | . . . . Ally Attacks . | . . . . Total Damage . | . . . . Kills . | . . . . Allies Corrupted . | . . . . Allies Melted . | . . . . Intel | -11 -10 -10 -10 ------- Run | Yrd Mat Min Sub Robot Analysis Total . | . . . . Derelict Logs Recovered 2 | . . 1 1 Drone Launches . | . . . . Drone Recoveries . | . . . . Exploration | -11 -10 -10 -10 ------------- Run | Yrd Mat Min Sub Turns Passed 2432 | 88 655 932 757 Spaces Moved 991 | 77 338 191 385 Core 31 | 31 . . . Treads . | . . . . Legs 960 | 46 338 191 385 Wheels . | . . . . Hover . | . . . . Flight . | . . . . Fastest Speed 50 | 50 120 120 120 Average Speed 143 | 95 131 120 176 Slowest Speed 190 | 120 190 120 190 Overloaded Moves . | . . . . Propulsion Burnouts . | . . . . Robots Hopped . | . . . . Cave-ins Triggered . | . . . . Exploration Rate (%) 27 | 5 49 30 26 Regions Visited 3 Branch Regions 2 Pre-discovered Areas 1 | . . 1 . Known Exits Taken . | . . . . Unknown Exits Taken 3 | 1 1 1 . Scrap Searched 1 | . . 1 . Spaces Dug . | . . . . Terrain Destroyed . | . . . . Melee . | . . . . Projectile . | . . . . AOE . | . . . . Terrain Rammed . | . . . . Walls Destroyed . | . . . . Machines Disabled . | . . . . Actions | -11 -10 -10 -10 --------- Run | Yrd Mat Min Sub Total 1848 | 92 442 893 421 Wait 725 | . 29 696 . Move 988 | 76 337 190 385 Hop . | . . . . Pick Up 27 | 9 9 6 3 Fast Attach . | . . . . Attach 15 | 6 6 . 3 Detach . | . . . . Swap 2 | . 1 . 1 Drop 6 | 1 1 . 4 Fire 80 | . 59 . 21 Melee . | . . . . Ram . | . . . . Kick 1 | . . 1 . Crush . | . . . . Escape Stasis . | . . . . Rewire . | . . . . Trap 4 | . . . 4 Miscellaneous . | . . . . Route ------- -11/Scrapyard -10/Materials (discovered 2 exits: [*Mat] / [*Min]) -10/Mines -10/Subcaves History --------- Turn | Location | Event 63 | -11/Scrapyard | Discovered new exit (range 15) 89 | -11/Scrapyard | Entered Materials 310 | -10/Materials | Build established: Mutant 334 | -10/Materials | Discovered new exit (range 6) 419 | -10/Materials | Core integrity fell below 50% 458 | -10/Materials | Lost 3 parts (1n2w) 494 | -10/Materials | Discovered new exit (range 12) 744 | -10/Materials | Entered Mines 808 | -10/Mines | Found a hidden stash of uninstalled traps 829 | -10/Mines | Learned location of Storage (-7) 1647 | -10/Mines | Discovered new exit (range 3) 1676 | -10/Mines | Entered Subcaves 1684 | -10/Subcaves | Learned 4 Materials zone layouts 1896 | -10/Subcaves | Core integrity fell below 20% 2263 | -10/Subcaves | Shifting Twisted Machinery released Mak. Light Armor Plating 2433 | -10/Subcaves | Destroyed by Autobeam Turret with Autobeam Last Messages --------------- 02083_ Acquired Battle Rifle. 02146_ Acquired 10 matter. Mak. Light Armor Plating falls loose from the Twisted Machinery. 02277_ Acquired Mak. Light Armor Plating. 02409_ Lgt. Ion Engine destroyed. 02418_ S-10 Pest destroyed. 02418_ Switching to secondary target: S-10 Pest. 02418_ S-10 Pest destroyed. 02423_ Flight Unit fries itself beyond repair. 02424_ S-10 Pest destroyed. 02426_ Lgt. Ion Engine fries itself beyond repair. 02426_ S-10 Pest destroyed. 02427_ Subatomizers dissect the Flight Unit. 02428_ Flight Unit fries itself beyond repair. 02432_ Lgt. Assault Rifle fries itself beyond repair. 02433_ Flight Unit fries itself beyond repair. Map ----- +----------------------------------------------------+ | ?????????????????????????????????????????????????? | | ?????????????????????????????????????????????????? | | ?????????????????????????????????????????????????? | | ?????????????????????????????????????????????????? | | ?????????????????????????????????????????????????? | | ?????????????????????????????????????????????????? | | ????????????????????????????????????????????????## | | ????????????????????????????????????????????????# | | ????????????????????????????????????????????????# | | ???????????????????????????????????????????????## | | ???????????????????????????????????????????????# | | ???????????????????????????###?????????????????# | | ??????????????????????????? #?????????????????# | | ?????????????????????????? ???????????????????# | | ?????????????????????????? ???????????????????# | | ?????????????????????????? ????????????????????? | | ?????????????????????????? ????????????????????? | | ?????????????????????????? #????????????????????? | | ?????????????????????????? ##???????????????????? | | ???????????????????????### #???????????????????? | | ??????????????????????## ????????????????????? | | ??????????????????????# #????????????????????? | | ??????????????????????# #?##?????????????????? | | ?????????????????????## ## #?????????????????? | | ???????????????????### [%% #?????????????????? | | ?????????????????### @% #????? ????????#?#? | | ????????????????## % ##### ????????# # # | | ????????????????# ## ?????##"""" | | ????????????????# ##?# ?????"""#" | | ???????????????## #??# t????##"" # | | ???????????????# ###??# #### ????##"" # | | ???????????????### ##??### ####??? ????#" ## | | ???????????????### ##??## ## #????????# | | ???????????????# ##### ########## | | ???????????????### ## ## | | ?????????????????# ## | | ?????????????????# ###### | | ?????????????????## ###???## ##### | | ??????????????????# ####??# #???##### | | ??????????????????# ##?##### #???????## | | ??????????????????## #?????## #????????# # | | ???????????????????# #??????###???????## # | | ???????????????????# ##????????????????# | | ???????????????????## ##?????????????????# | | ????????????????????## #??????????????????## | | ?????????????????????######???????????????????#### | | ?????????????????????????????????????????????????? | | ?????????????????????????????????????????????????? | | ?????????????????????????????????????????????????? | | ?????????????????????????????????????????????????? | +----------------------------------------------------+ Best States ------------- Heat Dissipation 25 Energy Generation 10 Energy Capacity 125 Matter Stores 300 Matter Capacity 300 Sight Range 16 Robot Scan Range 14 Terrain Scan Density 10 Evasion (%) 55 Item Schematics ----------------- None Robot Schematics ------------------ None Fabricated ------------ Nothing Alien Tech Used ----------------- None Achievements -------------- None Challenges ------------ None Game ------ Seed PhasingBoltFacilitator Manual? 0 Play Time 00:13:56 Cumulative 37.4 hours Start 2024.08.07 @ 17:15:57 End 2024.08.07 @ 17:29:00 Sessions 1 Manual Loads 0 Difficulty Rogue Special Mode None Game No. 56 Rogue 56 Adventurer 0 Explorer 0 Win Type - Total 0 Types 0/0/0/0/0/0/0/0/0 Lore% 12 Gallery% 26 Achievement% 24 Wizard Run 0 Options --------- Layout 1 ASCII 0 Keyboard 0 Movement Arrows Keybinds 0 Fullscreen 1 Font 16/SmallcapsGlow Map View 50x40 Zoom Use 0% Tactical HUD 1 Map Filters NONE Filters NONE Steam SD RUN: bcf0a9f9-d8ff-4bfd-b817-dc6648f0788c